[Event "Titled Tuesday Blitz July 11 Late 2023"]
[White "Rios Escobar, Adan"]
[Black "rionelG"]
[WhiteFideId "3403645"]
[WhiteElo "2433"]
[BlackElo "2283"]
[Result "1-0"]
[Round "10"]
[TimeControl "180+2"]
[Date "2023.07.11"]
[WhiteClock "0:00:16"]
[BlackClock "0:00:00"]
[Board "84"]

1. b3 {[%clk 0:02:55]}  Nf6 {[%clk 0:02:59]} 2. Bb2 {[%clk 0:02:55]}  g6 {[%clk 0:03:00]} 3. g3 {[%clk 0:02:56]}  Bg7 {[%clk 0:03:00]} 4. Bg2 {[%clk 0:02:56]}  O-O {[%clk 0:03:01]} 5. e3 {[%clk 0:02:57]}  d6 {[%clk 0:03:01]} 6. Ne2 {[%clk 0:02:58]}  e5 {[%clk 0:03:01]} 7. O-O {[%clk 0:02:58]}  Re8 {[%clk 0:03:01]} 8. c4 {[%clk 0:02:59]}  Nbd7 {[%clk 0:03:00]} 9. Nbc3 {[%clk 0:02:59]}  Nf8 {[%clk 0:03:00]} 10. a4 {[%clk 0:02:58]}  c6 {[%clk 0:02:59]} 11. a5 {[%clk 0:02:59]}  a6 {[%clk 0:02:58]} 12. Qc2 {[%clk 0:02:59]}  h5 {[%clk 0:02:53]} 13. h3 {[%clk 0:02:59]}  N8h7 {[%clk 0:02:50]} 14. f4 {[%clk 0:02:54]}  e4 {[%clk 0:02:40]} 15. b4 {[%clk 0:02:49]}  g5 {[%clk 0:02:25]} 16. f5 {[%clk 0:02:42]}  d5 {[%clk 0:02:09]} 17. cxd5 {[%clk 0:02:42]}  cxd5 {[%clk 0:02:09]} 18. Na4 {[%clk 0:02:36]}  Bd7 {[%clk 0:01:59]} 19. Nb6 {[%clk 0:02:36]}  Rb8 {[%clk 0:01:57]} 20. Nd4 {[%clk 0:02:36]}  Bf8 {[%clk 0:01:46]} 21. Qb3 {[%clk 0:02:36]}  Bd6 {[%clk 0:01:44]} 22. Ne2 {[%clk 0:02:26]}  Bb5 {[%clk 0:01:40]} 23. Kf2 {[%clk 0:02:10]}  Bxe2 {[%clk 0:01:34]} 24. Kxe2 {[%clk 0:02:10]}  Bxg3 {[%clk 0:01:34]} 25. Rac1 {[%clk 0:02:11]}  Qd6 {[%clk 0:01:26]} 26. Rc5 {[%clk 0:02:08]}  Rbd8 {[%clk 0:01:23]} 27. Bd4 {[%clk 0:02:07]}  Be5 {[%clk 0:01:20]} 28. Qb2 {[%clk 0:01:39]}  Bxd4 {[%clk 0:01:19]} 29. Qxd4 {[%clk 0:01:40]}  Qg3 {[%clk 0:01:19]} 30. Rf2 {[%clk 0:01:40]}  g4 {[%clk 0:01:16]} 31. h4 {[%clk 0:01:30]}  Qxh4 {[%clk 0:01:13]} 32. Nxd5 {[%clk 0:01:30]}  g3 {[%clk 0:01:12]} 33. Rf4 {[%clk 0:01:25]}  Qh2 {[%clk 0:00:38]} 34. Kf1 {[%clk 0:01:24]}  Nxd5 {[%clk 0:00:28]} 35. Rxd5 {[%clk 0:01:25]}  Rxd5 {[%clk 0:00:27]} 36. Qxd5 {[%clk 0:01:25]}  Rc8 {[%clk 0:00:26]} 37. Qxe4 {[%clk 0:01:13]}  Rc1+ {[%clk 0:00:24]} 38. Ke2 {[%clk 0:01:13]}  Qg1 {[%clk 0:00:22]} 39. Bf1 {[%clk 0:00:45]}  Ng5 {[%clk 0:00:16]} 40. Qxb7 {[%clk 0:00:23]}  Qh2+ {[%clk 0:00:10]} 41. Qg2 {[%clk 0:00:20]}  Qxg2+ {[%clk 0:00:04]} 42. Bxg2 {[%clk 0:00:21]}  f6 {[%clk 0:00:03]} 43. Bb7 {[%clk 0:00:20]}  Rb1 {[%clk 0:00:00]} 44. Kd3 {[%clk 0:00:16]} 1-0


[Site "https://www.chess.com"]

[Event "Titled Tuesday Blitz July 11 Late 2023"]
[White "Cardenas Carbajal, Nilson"]
[Black "Krzywda, Andrzej"]
[WhiteFideId "8401128"]
[BlackFideId "1114565"]
[WhiteElo "2194"]
[BlackElo "2400"]
[Result "0-1"]
[Round "10"]
[TimeControl "180+2"]
[Date "2023.07.11"]
[WhiteClock "0:00:00"]
[BlackClock "0:00:18"]
[Board "88"]

1. e4 {[%clk 0:02:59]}  e5 {[%clk 0:02:59]} 2. Nf3 {[%clk 0:02:58]}  Nf6 {[%clk 0:02:59]} 3. Nxe5 {[%clk 0:02:50]}  d6 {[%clk 0:03:00]} 4. Nf3 {[%clk 0:02:49]}  Nxe4 {[%clk 0:03:00]} 5. Nc3 {[%clk 0:02:50]}  Nxc3 {[%clk 0:02:59]} 6. dxc3 {[%clk 0:02:50]}  Be7 {[%clk 0:03:00]} 7. Be3 {[%clk 0:02:49]}  Nd7 {[%clk 0:03:01]} 8. Qd2 {[%clk 0:02:48]}  Ne5 {[%clk 0:03:01]} 9. Be2 {[%clk 0:02:44]}  Ng4 {[%clk 0:03:01]} 10. Bd4 {[%clk 0:02:39]}  O-O {[%clk 0:03:00]} 11. h3 {[%clk 0:02:36]}  Nf6 {[%clk 0:03:00]} 12. O-O-O {[%clk 0:02:35]}  c5 {[%clk 0:02:58]} 13. Be3 {[%clk 0:02:33]}  Be6 {[%clk 0:02:56]} 14. c4 {[%clk 0:02:30]}  b5 {[%clk 0:02:54]} 15. cxb5 {[%clk 0:02:20]}  Ne4 {[%clk 0:02:48]} 16. Qd3 {[%clk 0:02:15]}  d5 {[%clk 0:02:48]} 17. c4 {[%clk 0:02:05]}  Bf6 {[%clk 0:02:29]} 18. cxd5 {[%clk 0:01:52]}  Bf5 {[%clk 0:02:29]} 19. Qc4 {[%clk 0:01:34]}  Nd6 {[%clk 0:02:22]} 20. Qf4 {[%clk 0:01:29]}  Qa5 {[%clk 0:02:14]} 21. Bxc5 {[%clk 0:01:16]}  Qxa2 {[%clk 0:02:09]} 22. Bd4 {[%clk 0:00:53]}  Rfe8 {[%clk 0:01:35]} 23. Bd3 {[%clk 0:00:34]}  Bxd3 {[%clk 0:01:34]} 24. Rxd3 {[%clk 0:00:34]}  Bxd4 {[%clk 0:01:24]} 25. Nxd4 {[%clk 0:00:29]}  Qa1+ {[%clk 0:01:10]} 26. Kc2 {[%clk 0:00:28]}  Rac8+ {[%clk 0:00:57]} 27. Nc6 {[%clk 0:00:27]}  Qxh1 {[%clk 0:00:55]} 28. Qxd6 {[%clk 0:00:26]}  Qxg2 {[%clk 0:00:47]} 29. Kb3 {[%clk 0:00:23]}  Qxf2 {[%clk 0:00:45]} 30. Ne7+ {[%clk 0:00:20]}  Rxe7 {[%clk 0:00:44]} 31. Qxe7 {[%clk 0:00:20]}  Qc2+ {[%clk 0:00:42]} 32. Ka2 {[%clk 0:00:17]}  Qxd3 {[%clk 0:00:42]} 33. d6 {[%clk 0:00:16]}  Qd5+ {[%clk 0:00:42]} 34. Ka3 {[%clk 0:00:16]}  Qc5+ {[%clk 0:00:40]} 35. Ka2 {[%clk 0:00:12]}  Rf8 {[%clk 0:00:31]} 36. b4 {[%clk 0:00:09]}  Qxb4 {[%clk 0:00:28]} 37. Qc7 {[%clk 0:00:05]}  Qxb5 {[%clk 0:00:20]} 38. d7 {[%clk 0:00:04]}  Qa4+ {[%clk 0:00:20]} 39. Kb2 {[%clk 0:00:04]}  Qd4+ {[%clk 0:00:20]} 40. Ka2 {[%clk 0:00:04]}  Qb6 {[%clk 0:00:19]} 41. Qc8 {[%clk 0:00:00]}  Qe6+ {[%clk 0:00:18]} 0-1


[Site "https://www.chess.com"]

[Event "Titled Tuesday Blitz July 11 Late 2023"]
[White "kiwibobo"]
[Black "Guzman Moneo, Alberto"]
[BlackFideId "2209616"]
[WhiteElo "2337"]
[BlackElo "2393"]
[Result "0-1"]
[Round "10"]
[TimeControl "180+2"]
[Date "2023.07.11"]
[WhiteClock "0:00:26"]
[BlackClock "0:00:20"]
[Board "91"]

1. e4 {[%clk 0:03:00]}  e6 {[%clk 0:01:31]} 2. d4 {[%clk 0:02:59]}  d5 {[%clk 0:01:31]} 3. Nd2 {[%clk 0:02:56]}  dxe4 {[%clk 0:01:30]} 4. Nxe4 {[%clk 0:02:54]}  Nd7 {[%clk 0:01:31]} 5. Nf3 {[%clk 0:02:52]}  Ngf6 {[%clk 0:01:31]} 6. Nxf6+ {[%clk 0:02:52]}  Nxf6 {[%clk 0:01:32]} 7. Bd3 {[%clk 0:02:53]}  c5 {[%clk 0:01:32]} 8. Be3 {[%clk 0:02:54]}  cxd4 {[%clk 0:01:33]} 9. Bxd4 {[%clk 0:02:54]}  Be7 {[%clk 0:01:32]} 10. O-O {[%clk 0:02:53]}  O-O {[%clk 0:01:33]} 11. c3 {[%clk 0:02:36]}  Bd7 {[%clk 0:01:30]} 12. Bc2 {[%clk 0:02:28]}  Bc6 {[%clk 0:01:29]} 13. Ne5 {[%clk 0:02:17]}  Bd5 {[%clk 0:01:29]} 14. Re1 {[%clk 0:02:13]}  b6 {[%clk 0:01:26]} 15. Qd3 {[%clk 0:02:13]}  g6 {[%clk 0:01:25]} 16. Qh3 {[%clk 0:02:05]}  Bc5 {[%clk 0:01:16]} 17. Bxc5 {[%clk 0:01:50]}  bxc5 {[%clk 0:01:16]} 18. Rad1 {[%clk 0:01:51]}  Qe7 {[%clk 0:01:16]} 19. c4 {[%clk 0:01:47]}  Bb7 {[%clk 0:01:12]} 20. Qh4 {[%clk 0:01:37]}  Rad8 {[%clk 0:01:08]} 21. Ng4 {[%clk 0:01:32]}  Kg7 {[%clk 0:01:03]} 22. Qh6+ {[%clk 0:01:30]}  Kg8 {[%clk 0:00:58]} 23. Qh4 {[%clk 0:01:25]}  Kg7 {[%clk 0:00:58]} 24. Qh6+ {[%clk 0:01:25]}  Kg8 {[%clk 0:00:54]} 25. Qg5 {[%clk 0:01:10]}  Kg7 {[%clk 0:00:44]} 26. Nh6 {[%clk 0:01:07]}  Rxd1 {[%clk 0:00:40]} 27. Bxd1 {[%clk 0:01:05]}  Rd8 {[%clk 0:00:34]} 28. Bc2 {[%clk 0:01:02]}  Kf8 {[%clk 0:00:23]} 29. h3 {[%clk 0:00:52]}  Ng8 {[%clk 0:00:20]} 30. Qf4 {[%clk 0:00:44]}  Kg7 {[%clk 0:00:18]} 31. Ng4 {[%clk 0:00:42]}  h5 {[%clk 0:00:16]} 32. Ne5 {[%clk 0:00:36]}  Qf6 {[%clk 0:00:13]} 33. Qg3 {[%clk 0:00:33]}  Ne7 {[%clk 0:00:13]} 34. Re3 {[%clk 0:00:29]}  Nf5 {[%clk 0:00:13]} 35. Bxf5 {[%clk 0:00:28]}  exf5 {[%clk 0:00:14]} 36. h4 {[%clk 0:00:26]}  f4 {[%clk 0:00:13]} 37. Qh3 {[%clk 0:00:19]}  Rd1+ {[%clk 0:00:12]} 38. Kh2 {[%clk 0:00:18]}  fxe3 {[%clk 0:00:12]} 39. Qxe3 {[%clk 0:00:19]}  Qxh4+ {[%clk 0:00:11]} 40. Qh3 {[%clk 0:00:18]}  Qxh3+ {[%clk 0:00:11]} 41. Kxh3 {[%clk 0:00:19]}  Rd2 {[%clk 0:00:11]} 42. Nf3 {[%clk 0:00:20]}  Rxf2 {[%clk 0:00:11]} 43. Ne5 {[%clk 0:00:21]}  Rxg2 {[%clk 0:00:11]} 44. Nd7 {[%clk 0:00:22]}  Rxb2 {[%clk 0:00:11]} 45. Nxc5 {[%clk 0:00:22]}  Be4 {[%clk 0:00:11]} 46. Nxe4 {[%clk 0:00:22]}  Rxa2 {[%clk 0:00:11]} 47. Nc3 {[%clk 0:00:23]}  Rc2 {[%clk 0:00:12]} 48. Nb5 {[%clk 0:00:22]}  Rxc4 {[%clk 0:00:13]} 49. Nxa7 {[%clk 0:00:23]}  Rb4 {[%clk 0:00:13]} 50. Nc6 {[%clk 0:00:23]}  Rb2 {[%clk 0:00:14]} 51. Ne5 {[%clk 0:00:24]}  Rb3+ {[%clk 0:00:15]} 52. Kh4 {[%clk 0:00:23]}  Re3 {[%clk 0:00:16]} 53. Nxg6 {[%clk 0:00:23]}  Re6 {[%clk 0:00:17]} 54. Nf4 {[%clk 0:00:23]}  Rh6 {[%clk 0:00:17]} 55. Nxh5+ {[%clk 0:00:23]}  Rxh5+ {[%clk 0:00:17]} 56. Kxh5 {[%clk 0:00:24]}  Kf6 {[%clk 0:00:18]} 57. Kg4 {[%clk 0:00:23]}  Ke5 {[%clk 0:00:19]} 58. Kg3 {[%clk 0:00:24]}  Kf5 {[%clk 0:00:20]} 59. Kf3 {[%clk 0:00:24]}  Kg5 {[%clk 0:00:20]} 60. Kg3 {[%clk 0:00:24]}  Kf5 {[%clk 0:00:21]} 61. Kf3 {[%clk 0:00:25]}  f6 {[%clk 0:00:21]} 62. Kg3 {[%clk 0:00:24]}  Ke4 {[%clk 0:00:21]} 63. Kf2 {[%clk 0:00:25]}  Kf4 {[%clk 0:00:22]} 64. Kf1 {[%clk 0:00:25]}  Kf3 {[%clk 0:00:22]} 65. Kg1 {[%clk 0:00:25]}  Ke2 {[%clk 0:00:22]} 66. Kg2 {[%clk 0:00:25]}  f5 {[%clk 0:00:22]} 67. Kg3 {[%clk 0:00:26]}  Ke3 {[%clk 0:00:23]} 68. Kg2 {[%clk 0:00:27]}  f4 {[%clk 0:00:20]} 69. Kf1 {[%clk 0:00:27]}  Kf3 {[%clk 0:00:20]} 70. Ke1 {[%clk 0:00:26]}  Kg2 {[%clk 0:00:20]} 0-1


[Site "https://www.chess.com"]

[Event "Titled Tuesday Blitz July 11 Late 2023"]
[White "Pein, Jonathan"]
[Black "Chemin, Justo Reinaldo"]
[WhiteFideId "417092"]
[BlackFideId "2101580"]
[WhiteElo "2437"]
[BlackElo "2253"]
[Result "1/2-1/2"]
[Round "10"]
[TimeControl "180+2"]
[Date "2023.07.11"]
[WhiteClock "0:00:36"]
[BlackClock "0:00:24"]
[Board "97"]

1. Nc3 {[%clk 0:02:59]}  d5 {[%clk 0:02:58]} 2. d4 {[%clk 0:02:59]}  c5 {[%clk 0:02:53]} 3. e4 {[%clk 0:02:51]}  dxe4 {[%clk 0:02:43]} 4. d5 {[%clk 0:02:51]}  Nf6 {[%clk 0:02:41]} 5. Bg5 {[%clk 0:02:47]}  h6 {[%clk 0:02:30]} 6. Bxf6 {[%clk 0:02:47]}  exf6 {[%clk 0:02:25]} 7. Bb5+ {[%clk 0:02:47]}  Bd7 {[%clk 0:02:24]} 8. Qe2 {[%clk 0:02:46]}  f5 {[%clk 0:02:12]} 9. f3 {[%clk 0:02:39]}  Bd6 {[%clk 0:02:12]} 10. fxe4 {[%clk 0:02:39]}  O-O {[%clk 0:02:06]} 11. Bxd7 {[%clk 0:02:38]}  Nxd7 {[%clk 0:02:04]} 12. O-O-O {[%clk 0:02:37]}  Re8 {[%clk 0:01:59]} 13. Nf3 {[%clk 0:02:36]}  fxe4 {[%clk 0:01:56]} 14. Nxe4 {[%clk 0:02:36]}  f5 {[%clk 0:01:52]} 15. Qb5 {[%clk 0:02:23]}  fxe4 {[%clk 0:01:49]} 16. Nd2 {[%clk 0:02:23]}  e3 {[%clk 0:01:46]} 17. Nc4 {[%clk 0:02:23]}  Bf4 {[%clk 0:01:31]} 18. Rde1 {[%clk 0:02:20]}  Nb6 {[%clk 0:01:22]} 19. g3 {[%clk 0:02:15]}  Qxd5 {[%clk 0:01:04]} 20. Nxb6 {[%clk 0:02:06]}  axb6 {[%clk 0:00:54]} 21. gxf4 {[%clk 0:02:02]}  Rxa2 {[%clk 0:00:44]} 22. Qxe8+ {[%clk 0:02:01]}  Kh7 {[%clk 0:00:43]} 23. Kb1 {[%clk 0:01:26]}  Rxb2+ {[%clk 0:00:33]} 24. Kxb2 {[%clk 0:01:25]}  Qd4+ {[%clk 0:00:33]} 25. Kb3 {[%clk 0:01:07]}  Qb4+ {[%clk 0:00:30]} 26. Ka2 {[%clk 0:01:08]}  Qc4+ {[%clk 0:00:30]} 27. Kb1 {[%clk 0:01:01]}  Qb4+ {[%clk 0:00:30]} 28. Ka1 {[%clk 0:00:57]}  Qc3+ {[%clk 0:00:28]} 29. Kb1 {[%clk 0:00:53]}  Qb4+ {[%clk 0:00:27]} 30. Kc1 {[%clk 0:00:54]}  Qd2+ {[%clk 0:00:27]} 31. Kb2 {[%clk 0:00:54]}  Qb4+ {[%clk 0:00:27]} 32. Ka2 {[%clk 0:00:55]}  Qc4+ {[%clk 0:00:25]} 33. Ka1 {[%clk 0:00:36]}  Qc3+ {[%clk 0:00:25]} 34. Kb1 {[%clk 0:00:36]}  Qb4+ {[%clk 0:00:24]} 1/2-1/2


[Site "https://www.chess.com"]

[Event "Titled Tuesday Blitz July 11 Late 2023"]
[White "Sarkar, Justin"]
[Black "Srdanovic, Jovana"]
[WhiteFideId "2010011"]
[BlackFideId "954810"]
[WhiteElo "2250"]
[BlackElo "2400"]
[Result "0-1"]
[Round "10"]
[TimeControl "180+2"]
[Date "2023.07.11"]
[WhiteClock "0:00:00"]
[BlackClock "0:00:29"]
[Board "98"]

1. e4 {[%clk 0:02:38]}  c6 {[%clk 0:02:59]} 2. Nc3 {[%clk 0:02:30]}  d5 {[%clk 0:02:58]} 3. Qe2 {[%clk 0:02:31]}  d4 {[%clk 0:02:52]} 4. Nd1 {[%clk 0:02:20]}  e5 {[%clk 0:02:52]} 5. d3 {[%clk 0:02:16]}  h6 {[%clk 0:02:43]} 6. f4 {[%clk 0:02:14]}  Bd6 {[%clk 0:02:38]} 7. fxe5 {[%clk 0:01:58]}  Bxe5 {[%clk 0:02:36]} 8. Nf3 {[%clk 0:01:58]}  Nd7 {[%clk 0:02:30]} 9. g3 {[%clk 0:01:40]}  Ngf6 {[%clk 0:02:22]} 10. Bg2 {[%clk 0:01:35]}  Qc7 {[%clk 0:02:18]} 11. Nf2 {[%clk 0:01:12]}  O-O {[%clk 0:01:59]} 12. O-O {[%clk 0:01:05]}  c5 {[%clk 0:01:53]} 13. Nxe5 {[%clk 0:01:00]}  Nxe5 {[%clk 0:01:50]} 14. Bf4 {[%clk 0:00:58]}  Qe7 {[%clk 0:01:50]} 15. c3 {[%clk 0:00:42]}  Nfg4 {[%clk 0:01:42]} 16. cxd4 {[%clk 0:00:36]}  cxd4 {[%clk 0:01:40]} 17. Rac1 {[%clk 0:00:24]}  Nxf2 {[%clk 0:01:38]} 18. Rxf2 {[%clk 0:00:22]}  Bg4 {[%clk 0:01:36]} 19. Qf1 {[%clk 0:00:18]}  b6 {[%clk 0:01:13]} 20. h3 {[%clk 0:00:16]}  Bh5 {[%clk 0:01:09]} 21. Kh2 {[%clk 0:00:15]}  Bg6 {[%clk 0:01:08]} 22. Rfc2 {[%clk 0:00:11]}  Rfe8 {[%clk 0:01:00]} 23. Rc7 {[%clk 0:00:11]}  Qb4 {[%clk 0:00:58]} 24. R1c2 {[%clk 0:00:07]}  Qb5 {[%clk 0:00:57]} 25. Bxe5 {[%clk 0:00:03]}  Qxe5 {[%clk 0:00:53]} 26. Qf4 {[%clk 0:00:03]}  Qb5 {[%clk 0:00:50]} 27. R7c4 {[%clk 0:00:02]}  Rad8 {[%clk 0:00:47]} 28. h4 {[%clk 0:00:02]}  Qa5 {[%clk 0:00:41]} 29. Bf3 {[%clk 0:00:02]}  Re6 {[%clk 0:00:36]} 30. b4 {[%clk 0:00:01]}  Qb5 {[%clk 0:00:33]} 31. a4 {[%clk 0:00:01]}  Qxa4 {[%clk 0:00:29]} 32. h5 {[%clk 0:00:01]}  Bh7 {[%clk 0:00:29]} 33. Rc7 {[%clk 0:00:00]}  Qe8 {[%clk 0:00:29]} 0-1


[Site "https://www.chess.com"]

[Event "Titled Tuesday Blitz July 11 Late 2023"]
[White "Kopacz, Grzegorz"]
[Black "Haitin, Ilja"]
[WhiteFideId "1109880"]
[BlackFideId "4501764"]
[WhiteElo "2229"]
[BlackElo "2383"]
[Result "0-1"]
[Round "10"]
[TimeControl "180+2"]
[Date "2023.07.11"]
[WhiteClock "0:00:11"]
[BlackClock "0:00:17"]
[Board "100"]

1. e4 {[%clk 0:03:00]}  e6 {[%clk 0:02:58]} 2. d4 {[%clk 0:02:58]}  d5 {[%clk 0:02:59]} 3. e5 {[%clk 0:02:53]}  c5 {[%clk 0:02:59]} 4. c3 {[%clk 0:02:51]}  Qb6 {[%clk 0:02:59]} 5. Nf3 {[%clk 0:02:49]}  Bd7 {[%clk 0:02:59]} 6. Be2 {[%clk 0:02:42]}  Bb5 {[%clk 0:02:58]} 7. O-O {[%clk 0:02:39]}  Bxe2 {[%clk 0:02:57]} 8. Qxe2 {[%clk 0:02:39]}  Nc6 {[%clk 0:02:58]} 9. Be3 {[%clk 0:02:36]}  Rc8 {[%clk 0:02:57]} 10. a3 {[%clk 0:02:33]}  cxd4 {[%clk 0:02:54]} 11. cxd4 {[%clk 0:02:34]}  Na5 {[%clk 0:02:53]} 12. Nc3 {[%clk 0:02:29]}  Ne7 {[%clk 0:02:50]} 13. Rac1 {[%clk 0:02:17]}  Nb3 {[%clk 0:02:46]} 14. Rc2 {[%clk 0:02:02]}  Nc6 {[%clk 0:02:45]} 15. Na4 {[%clk 0:01:59]}  Qa5 {[%clk 0:02:45]} 16. Nc5 {[%clk 0:01:53]}  Bxc5 {[%clk 0:02:44]} 17. dxc5 {[%clk 0:01:54]}  O-O {[%clk 0:02:43]} 18. Qd3 {[%clk 0:01:50]}  Qa4 {[%clk 0:02:38]} 19. Ng5 {[%clk 0:01:38]}  g6 {[%clk 0:02:37]} 20. f4 {[%clk 0:01:29]}  h6 {[%clk 0:02:21]} 21. Nf3 {[%clk 0:01:24]}  d4 {[%clk 0:02:14]} 22. Bf2 {[%clk 0:01:15]}  Rfd8 {[%clk 0:02:13]} 23. g4 {[%clk 0:01:10]}  Ne7 {[%clk 0:01:48]} 24. Rc4 {[%clk 0:00:49]}  Qb5 {[%clk 0:01:46]} 25. a4 {[%clk 0:00:49]}  Nxc5 {[%clk 0:01:42]} 26. axb5 {[%clk 0:00:21]}  Nxd3 {[%clk 0:01:40]} 27. Rxc8 {[%clk 0:00:21]}  Rxc8 {[%clk 0:01:36]} 28. Bxd4 {[%clk 0:00:21]}  Nxf4 {[%clk 0:01:35]} 29. Bxa7 {[%clk 0:00:21]}  Ned5 {[%clk 0:01:32]} 30. Nd4 {[%clk 0:00:18]}  Rc4 {[%clk 0:01:29]} 31. h4 {[%clk 0:00:13]}  g5 {[%clk 0:01:24]} 32. hxg5 {[%clk 0:00:13]}  hxg5 {[%clk 0:01:25]} 33. Kh2 {[%clk 0:00:13]}  Kh7 {[%clk 0:01:24]} 34. Kg3 {[%clk 0:00:13]}  Kg6 {[%clk 0:01:23]} 35. Rh1 {[%clk 0:00:10]}  Rxd4 {[%clk 0:01:22]} 36. Bxd4 {[%clk 0:00:09]}  Ne2+ {[%clk 0:01:22]} 37. Kf3 {[%clk 0:00:10]}  Nxd4+ {[%clk 0:01:23]} 38. Ke4 {[%clk 0:00:10]}  Nxb5 {[%clk 0:01:21]} 39. Rc1 {[%clk 0:00:10]}  Nbc7 {[%clk 0:01:14]} 40. Rc5 {[%clk 0:00:10]}  b6 {[%clk 0:01:13]} 41. Rc6 {[%clk 0:00:10]}  Na6 {[%clk 0:01:10]} 42. Rd6 {[%clk 0:00:09]}  Nc5+ {[%clk 0:01:10]} 43. Kd4 {[%clk 0:00:09]}  Na4 {[%clk 0:01:09]} 44. Rd7 {[%clk 0:00:09]}  Nxb2 {[%clk 0:01:08]} 45. Ke4 {[%clk 0:00:09]}  Nc4 {[%clk 0:01:07]} 46. Rc7 {[%clk 0:00:08]}  Nd2+ {[%clk 0:01:07]} 47. Kd3 {[%clk 0:00:08]}  Nf3 {[%clk 0:01:07]} 48. Rb7 {[%clk 0:00:07]}  Nxe5+ {[%clk 0:01:06]} 49. Ke4 {[%clk 0:00:08]}  Nc4 {[%clk 0:01:04]} 50. Kd4 {[%clk 0:00:07]}  Nd6 {[%clk 0:01:03]} 51. Rd7 {[%clk 0:00:07]}  Ne8 {[%clk 0:01:03]} 52. Ke5 {[%clk 0:00:07]}  Ng7 {[%clk 0:01:03]} 53. Ra7 {[%clk 0:00:07]}  f6+ {[%clk 0:01:01]} 54. Kd6 {[%clk 0:00:06]}  f5 {[%clk 0:01:01]} 55. gxf5+ {[%clk 0:00:05]}  Nxf5+ {[%clk 0:00:50]} 56. Kxe6 {[%clk 0:00:05]}  Nfe7 {[%clk 0:00:30]} 57. Rb7 {[%clk 0:00:03]}  g4 {[%clk 0:00:28]} 58. Ra7 {[%clk 0:00:03]}  Kg5 {[%clk 0:00:28]} 59. Ra2 {[%clk 0:00:03]}  g3 {[%clk 0:00:28]} 60. Ke5 {[%clk 0:00:03]}  Kg4 {[%clk 0:00:28]} 61. Ke4 {[%clk 0:00:03]}  b5 {[%clk 0:00:26]} 62. Rb2 {[%clk 0:00:02]}  b4 {[%clk 0:00:26]} 63. Rb3 {[%clk 0:00:02]}  g2 {[%clk 0:00:23]} 64. Rb1 {[%clk 0:00:02]}  Kg3 {[%clk 0:00:23]} 65. Kd3 {[%clk 0:00:03]}  Kh2 {[%clk 0:00:23]} 66. Ke2 {[%clk 0:00:02]}  g1=Q {[%clk 0:00:22]} 67. Rxg1 {[%clk 0:00:02]}  Kxg1 {[%clk 0:00:22]} 68. Kd3 {[%clk 0:00:03]}  Kg2 {[%clk 0:00:21]} 69. Kc4 {[%clk 0:00:04]}  Kf3 {[%clk 0:00:22]} 70. Kb3 {[%clk 0:00:05]}  Ke3 {[%clk 0:00:22]} 71. Kc4 {[%clk 0:00:06]}  Kd2 {[%clk 0:00:22]} 72. Kb3 {[%clk 0:00:07]}  Kd3 {[%clk 0:00:22]} 73. Kb2 {[%clk 0:00:08]}  Kc4 {[%clk 0:00:22]} 74. Kb1 {[%clk 0:00:08]}  b3 {[%clk 0:00:23]} 75. Kb2 {[%clk 0:00:09]}  Kb4 {[%clk 0:00:23]} 76. Kb1 {[%clk 0:00:09]}  Kc3 {[%clk 0:00:23]} 77. Kc1 {[%clk 0:00:09]}  b2+ {[%clk 0:00:20]} 78. Kb1 {[%clk 0:00:10]}  Ne3 {[%clk 0:00:19]} 79. Ka2 {[%clk 0:00:10]}  Kc2 {[%clk 0:00:18]} 80. Ka3 {[%clk 0:00:10]}  b1=Q {[%clk 0:00:18]} 81. Ka4 {[%clk 0:00:11]}  Qb6 {[%clk 0:00:17]} 82. Ka3 {[%clk 0:00:11]}  Qb3# {[%clk 0:00:17]} 0-1


[Site "https://www.chess.com"]

[Event "Titled Tuesday Blitz July 11 Late 2023"]
[White "Tsukerman, Julia"]
[Black "kripri"]
[WhiteFideId "2621649"]
[WhiteElo "2097"]
[BlackElo "2326"]
[Result "1/2-1/2"]
[Round "10"]
[TimeControl "180+2"]
[Date "2023.07.11"]
[WhiteClock "0:00:09"]
[BlackClock "0:00:05"]
[Board "104"]

1. e4 {[%clk 0:03:00]}  c5 {[%clk 0:02:59]} 2. Nf3 {[%clk 0:03:00]}  Nc6 {[%clk 0:02:58]} 3. d4 {[%clk 0:02:56]}  cxd4 {[%clk 0:02:59]} 4. Nxd4 {[%clk 0:02:56]}  Nf6 {[%clk 0:02:59]} 5. Nc3 {[%clk 0:02:52]}  d6 {[%clk 0:02:59]} 6. Be3 {[%clk 0:02:51]}  Bd7 {[%clk 0:02:56]} 7. f3 {[%clk 0:02:49]}  Rc8 {[%clk 0:02:56]} 8. Qd2 {[%clk 0:02:49]}  Qa5 {[%clk 0:02:55]} 9. Be2 {[%clk 0:02:39]}  e6 {[%clk 0:02:55]} 10. g4 {[%clk 0:02:36]}  h6 {[%clk 0:02:46]} 11. h4 {[%clk 0:02:35]}  Be7 {[%clk 0:02:46]} 12. O-O-O {[%clk 0:02:29]}  Nxd4 {[%clk 0:02:43]} 13. Bxd4 {[%clk 0:02:26]}  b5 {[%clk 0:02:43]} 14. g5 {[%clk 0:02:07]}  b4 {[%clk 0:02:42]} 15. Nb1 {[%clk 0:02:06]}  Nh5 {[%clk 0:02:26]} 16. f4 {[%clk 0:01:55]}  Ng3 {[%clk 0:02:20]} 17. Bxg7 {[%clk 0:01:48]}  Rh7 {[%clk 0:01:58]} 18. gxh6 {[%clk 0:01:18]}  Qxa2 {[%clk 0:01:31]} 19. Rhg1 {[%clk 0:01:10]}  Nxe4 {[%clk 0:01:26]} 20. Qd4 {[%clk 0:00:57]}  d5 {[%clk 0:01:03]} 21. Be5 {[%clk 0:00:42]}  Rxc2+ {[%clk 0:00:49]} 22. Kxc2 {[%clk 0:00:33]}  Ba4+ {[%clk 0:00:50]} 23. Kc1 {[%clk 0:00:22]}  Bc5 {[%clk 0:00:32]} 24. Rg8+ {[%clk 0:00:19]}  Kd7 {[%clk 0:00:31]} 25. Qd3 {[%clk 0:00:16]}  Rxh6 {[%clk 0:00:11]} 26. Qxe4 {[%clk 0:00:14]}  Bxd1 {[%clk 0:00:11]} 27. Bb5+ {[%clk 0:00:15]}  Ke7 {[%clk 0:00:10]} 28. Qg2 {[%clk 0:00:12]}  Be3+ {[%clk 0:00:08]} 29. Qd2 {[%clk 0:00:10]}  Bxd2+ {[%clk 0:00:08]} 30. Nxd2 {[%clk 0:00:10]}  Qa1+ {[%clk 0:00:08]} 31. Nb1 {[%clk 0:00:10]}  Rxh4 {[%clk 0:00:06]} 32. Rc8 {[%clk 0:00:09]}  Rh1 {[%clk 0:00:06]} 33. Rc7+ {[%clk 0:00:09]}  Kd8 {[%clk 0:00:05]} 34. Rd7+ {[%clk 0:00:09]}  Kc8 {[%clk 0:00:04]} 35. Rc7+ {[%clk 0:00:09]}  Kd8 {[%clk 0:00:05]} 36. Rd7+ {[%clk 0:00:09]}  Ke8 {[%clk 0:00:05]} 37. Rc7+ {[%clk 0:00:09]}  Kf8 {[%clk 0:00:05]} 38. Rc8+ {[%clk 0:00:08]}  Ke7 {[%clk 0:00:05]} 39. Rc7+ {[%clk 0:00:09]}  Kd8 {[%clk 0:00:05]} 1/2-1/2


[Site "https://www.chess.com"]